[Event "*** Titled Tuesday 3|2 Blitz"]
[Site "Chess.com"]
[Date "2015.12.01"]
[Round "1"]
[White "Gergo85"]
[Black "chessbia"]
[Result "1-0"]
[WhiteElo "2322"]
[BlackElo "1935"]
[TimeControl "180+2"]
[EndTime "11:02:43 PST"]
[Termination "Gergo85 won by checkmate"]

1. e4 {[%clk 0:03:00.2]} 1... e5 {[%clk 0:03:00.3]} 2. Nf3 {[%clk 0:03:01]} 2...
Nc6 {[%clk 0:03:01.5]} 3. Bc4 {[%clk 0:03:01.6]} 3... Bc5 {[%clk 0:03:00.4]} 4.
b4 {[%clk 0:03:01.3]} 4... Bxb4 {[%clk 0:03:00.6]} 5. c3 {[%clk 0:03:02.6]} 5...
Ba5 {[%clk 0:03:01.8]} 6. d4 {[%clk 0:03:02.5]} 6... exd4 {[%clk 0:03:01]} 7.
Qb3 {[%clk 0:03:03.2]} 7... Qe7 {[%clk 0:03:01.5]} 8. O-O {[%clk 0:03:03.5]}
8... Bb6 {[%clk 0:02:56.3]} 9. cxd4 {[%clk 0:03:02.8]} 9... Nxd4 {[%clk
0:02:54.3]} 10. Nxd4 {[%clk 0:03:03.4]} 10... Bxd4 {[%clk 0:02:54.7]} 11. Nc3
{[%clk 0:03:05.1]} 11... Nf6 {[%clk 0:02:51.7]} 12. Ba3 {[%clk 0:03:06.1]} 12...
d6 {[%clk 0:02:45.4]} 13. Rad1 {[%clk 0:03:06.7]} 13... Bb6 {[%clk 0:02:33.9]}
14. e5 {[%clk 0:03:04.9]} 14... Ng4 {[%clk 0:02:20.8]} 15. exd6 {[%clk
0:03:05.7]} 15... Qh4 {[%clk 0:02:07.3]} 16. Bxf7+ {[%clk 0:02:51]} 16... Kd8
{[%clk 0:02:01.8]} 17. dxc7+ {[%clk 0:02:49.2]} 17... Kxc7 {[%clk 0:02:03.1]}
18. Bd6+ {[%clk 0:02:49.5]} 18... Kc6 {[%clk 0:02:01.8]} 19. Qb5# {[%clk
0:02:49.9]} 1-0

[Event "*** Titled Tuesday 3|2 Blitz"]
[Site "Chess.com"]
[Date "2015.12.01"]
[Round "1"]
[White "Cryptochess"]
[Black "Saitama_Hero"]
[Result "1-0"]
[WhiteElo "2427"]
[BlackElo "2121"]
[TimeControl "180+2"]
[EndTime "11:03:36 PST"]
[Termination "Cryptochess won by resignation"]

1. e4 {[%clk 0:02:58.7]} 1... c5 {[%clk 0:03:00.2]} 2. Nc3 {[%clk 0:02:57]} 2...
g6 {[%clk 0:03:01.4]} 3. g3 {[%clk 0:02:58.5]} 3... Nc6 {[%clk 0:03:01.5]} 4.
Bg2 {[%clk 0:02:59.9]} 4... Bg7 {[%clk 0:03:03]} 5. d3 {[%clk 0:03:01.5]} 5...
d6 {[%clk 0:03:00.1]} 6. Be3 {[%clk 0:03:02.8]} 6... Nf6 {[%clk 0:03:01.7]} 7.
h3 {[%clk 0:03:04.1]} 7... O-O {[%clk 0:03:03]} 8. Nge2 {[%clk 0:03:04.9]} 8...
e5 {[%clk 0:03:00.3]} 9. O-O {[%clk 0:03:06.2]} 9... Nd4 {[%clk 0:03:01.6]} 10.
f4 {[%clk 0:03:06]} 10... Nh5 {[%clk 0:02:46.2]} 11. f5 {[%clk 0:02:44.8]} 11...
gxf5 {[%clk 0:02:45.1]} 12. exf5 {[%clk 0:02:44.4]} 12... Nxf5 {[%clk
0:02:35.3]} 13. Rxf5 {[%clk 0:02:42.3]} 13... Bxf5 {[%clk 0:02:37.2]} 14. g4
{[%clk 0:02:43.6]} 14... Bxg4 {[%clk 0:02:37.1]} 15. hxg4 {[%clk 0:02:45]} 15...
Nf6 {[%clk 0:02:38.7]} 16. Ng3 {[%clk 0:02:39.2]} 16... d5 {[%clk 0:02:36.9]}
17. Bxc5 {[%clk 0:02:38.2]} 17... Re8 {[%clk 0:02:34.7]} 18. Nf5 {[%clk
0:02:31.4]} 18... Qc7 {[%clk 0:02:34.3]} 19. Bf2 {[%clk 0:02:23.1]} 19... Rad8
{[%clk 0:02:34.7]} 20. g5 {[%clk 0:02:21.1]} 20... Nd7 {[%clk 0:02:25.9]} 21.
Nxd5 {[%clk 0:02:20.7]} 21... Qb8 {[%clk 0:02:22.4]} 22. Qh5 {[%clk 0:02:18.9]}
22... Nf8 {[%clk 0:02:22.3]} 23. Nde7+ {[%clk 0:02:10.6]} 23... Kh8 {[%clk
0:02:23.7]} 24. Qxf7 {[%clk 0:02:11]} 24... Ne6 {[%clk 0:02:25.2]} 25. Qxe6
{[%clk 0:02:08.4]} 1-0

[Event "*** Titled Tuesday 3|2 Blitz"]
[Site "Chess.com"]
[Date "2015.12.01"]
[Round "1"]
[White "Er_is_geen_hoop_meer"]
[Black "Entilza"]
[Result "1/2-1/2"]
[WhiteElo "2328"]
[BlackElo "2044"]
[TimeControl "180+2"]
[EndTime "11:04:01 PST"]
[Termination "Game drawn by agreement"]

1. d4 {[%clk 0:02:52.6]} 1... d5 {[%clk 0:02:46.2]} 2. c4 {[%clk 0:02:53.5]}
2... e6 {[%clk 0:02:46.6]} 3. Nf3 {[%clk 0:02:54.2]} 3... Nf6 {[%clk 0:02:45.2]}
4. g3 {[%clk 0:02:55.1]} 4... Be7 {[%clk 0:02:45.6]} 5. Bg2 {[%clk 0:02:56]}
5... O-O {[%clk 0:02:46.9]} 6. O-O {[%clk 0:02:57.9]} 6... c6 {[%clk 0:02:38.7]}
7. Qc2 {[%clk 0:02:56.9]} 7... b6 {[%clk 0:02:35.2]} 8. b3 {[%clk 0:02:57.9]}
8... Bb7 {[%clk 0:02:34.9]} 9. Nc3 {[%clk 0:02:58.3]} 9... Nbd7 {[%clk 0:02:35]}
10. e4 {[%clk 0:02:59.2]} 10... dxe4 {[%clk 0:02:30.3]} 11. Nxe4 {[%clk
0:03:01.1]} 11... Nxe4 {[%clk 0:02:30.3]} 12. Qxe4 {[%clk 0:03:03]} 12... Rc8
{[%clk 0:02:29.2]} 13. Bb2 {[%clk 0:03:03.3]} 13... Bf6 {[%clk 0:02:28.3]} 14.
Ne5 {[%clk 0:03:04.1]} 14... Bxe5 {[%clk 0:02:22.6]} 15. dxe5 {[%clk 0:03:06]}
15... Nc5 {[%clk 0:02:22.9]} 16. Qg4 {[%clk 0:03:04.9]} 16... Qe7 {[%clk
0:02:14.9]} 17. Rad1 {[%clk 0:03:05.6]} 17... Rfd8 {[%clk 0:02:14.5]} 18. Rd4
{[%clk 0:03:05]} 18... Rxd4 {[%clk 0:02:13.7]} 19. Bxd4 {[%clk 0:03:06.9]} 19...
Rd8 {[%clk 0:02:14.4]} 20. h4 {[%clk 0:03:06.8]} 20... Rd7 {[%clk 0:02:13.7]}
21. h5 {[%clk 0:03:06]} 21... h6 {[%clk 0:02:14.2]} 22. Be3 {[%clk 0:03:06.2]}
22... Kf8 {[%clk 0:02:13.8]} 23. Be4 {[%clk 0:03:05.2]} 23... Nxe4 {[%clk
0:02:12.2]} 24. Qxe4 {[%clk 0:03:07.1]} 24... c5 {[%clk 0:02:12.1]} 25. Qh7
{[%clk 0:03:07.7]} 25... f5 {[%clk 0:02:04.9]} 26. exf6 {[%clk 0:03:03]} 26...
Qxf6 {[%clk 0:02:03.6]} 27. f4 {[%clk 0:03:01.3]} 27... Qf5 {[%clk 0:02:00.9]}
28. Qxf5+ {[%clk 0:02:49.4]} 28... exf5 {[%clk 0:02:01.9]} 29. Kf2 {[%clk
0:02:51.3]} 29... Kf7 {[%clk 0:02:01.9]} 30. Re1 {[%clk 0:02:52.1]} 30... Be4
{[%clk 0:02:02.2]} 31. Re2 {[%clk 0:02:49]} 31... Rd3 {[%clk 0:02:01.9]} 1/2-1/2

[Event "*** Titled Tuesday 3|2 Blitz"]
[Site "Chess.com"]
[Date "2015.12.01"]
[Round "1"]
[White "Rikikits"]
[Black "kikydu96"]
[Result "1-0"]
[WhiteElo "2570"]
[BlackElo "2248"]
[TimeControl "180+2"]
[EndTime "11:04:13 PST"]
[Termination "Rikikits won by resignation"]

1. d4 {[%clk 0:02:56.8]} 1... d5 {[%clk 0:02:49.8]} 2. c4 {[%clk 0:02:56.6]}
2... c6 {[%clk 0:02:49.7]} 3. Nc3 {[%clk 0:02:57.7]} 3... Nf6 {[%clk 0:02:47.6]}
4. Nf3 {[%clk 0:02:56]} 4... dxc4 {[%clk 0:02:37]} 5. a4 {[%clk 0:02:54.8]} 5...
Bg4 {[%clk 0:02:36.3]} 6. Ne5 {[%clk 0:02:53.2]} 6... Bh5 {[%clk 0:02:33.1]} 7.
f3 {[%clk 0:02:50.3]} 7... e6 {[%clk 0:02:21]} 8. Nxc4 {[%clk 0:02:48.9]} 8...
Bb4 {[%clk 0:02:16.7]} 9. Qb3 {[%clk 0:02:48.6]} 9... Qe7 {[%clk 0:02:13.3]} 10.
e4 {[%clk 0:02:41.1]} 10... Nbd7 {[%clk 0:02:06.8]} 11. Be3 {[%clk 0:02:40.5]}
11... O-O {[%clk 0:02:00.6]} 12. Be2 {[%clk 0:02:39.8]} 12... a5 {[%clk
0:01:59.4]} 13. O-O {[%clk 0:02:35.4]} 13... Bxc3 {[%clk 0:02:00]} 14. bxc3
{[%clk 0:02:37.3]} 14... Nxe4 {[%clk 0:01:59.5]} 15. g4 {[%clk 0:02:38.7]} 15...
Bg6 {[%clk 0:01:44.5]} 16. fxe4 {[%clk 0:02:38]} 16... Bxe4 {[%clk 0:01:46.1]}
17. Qa3 {[%clk 0:02:23.1]} 17... Qh4 {[%clk 0:01:44.9]} 18. Qd6 {[%clk
0:02:21.5]} 18... Nf6 {[%clk 0:01:41.5]} 19. Qg3 {[%clk 0:02:21.1]} 19... Qxg3+
{[%clk 0:01:40.6]} 20. hxg3 {[%clk 0:02:23]} 20... Bd5 {[%clk 0:01:40.7]} 21.
Nb6 {[%clk 0:02:21.9]} 21... Ne4 {[%clk 0:01:40.6]} 22. Nxa8 {[%clk 0:02:21]}
22... Nxg3 {[%clk 0:01:40.8]} 23. Rfe1 {[%clk 0:02:21.8]} 23... Rxa8 {[%clk
0:01:40]} 24. Bf4 {[%clk 0:02:20.8]} 24... Ne4 {[%clk 0:01:40]} 25. c4 {[%clk
0:02:21.3]} 1-0

[Event "*** Titled Tuesday 3|2 Blitz"]
[Site "Chess.com"]
[Date "2015.12.01"]
[Round "1"]
[White "Zvonokchess"]
[Black "yopino"]
[Result "1-0"]
[WhiteElo "2537"]
[BlackElo "2223"]
[TimeControl "180+2"]
[EndTime "11:04:59 PST"]
[Termination "Zvonokchess won by resignation"]

1. Nf3 {[%clk 0:02:59.9]} 1... c5 {[%clk 0:03:00.7]} 2. g3 {[%clk 0:03:01]} 2...
g6 {[%clk 0:03:02]} 3. Bg2 {[%clk 0:03:02.3]} 3... Bg7 {[%clk 0:03:03.6]} 4. O-O
{[%clk 0:03:03.6]} 4... Nc6 {[%clk 0:03:05.1]} 5. c3 {[%clk 0:03:04.6]} 5... Nf6
{[%clk 0:03:04.5]} 6. d4 {[%clk 0:03:05.8]} 6... cxd4 {[%clk 0:03:06.4]} 7. cxd4
{[%clk 0:03:07.4]} 7... d5 {[%clk 0:03:07.6]} 8. Nc3 {[%clk 0:03:08]} 8... O-O
{[%clk 0:03:08.4]} 9. Ne5 {[%clk 0:03:08.8]} 9... Qb6 {[%clk 0:02:16.8]} 10. Na4
{[%clk 0:03:02.9]} 10... Qc7 {[%clk 0:02:06]} 11. Bf4 {[%clk 0:02:57.9]} 11...
Nh5 {[%clk 0:02:00.7]} 12. Nxg6 {[%clk 0:02:58.2]} 12... Nxf4 {[%clk 0:01:59.3]}
13. Nxf4 {[%clk 0:02:58.2]} 13... Nxd4 {[%clk 0:01:56.5]} 14. Nxd5 {[%clk
0:02:54.2]} 14... Qd6 {[%clk 0:01:55.2]} 15. Nac3 {[%clk 0:02:54.4]} 15... Be6
{[%clk 0:01:55]} 16. e3 {[%clk 0:02:52.3]} 16... Nf5 {[%clk 0:01:55.4]} 17. Qh5
{[%clk 0:02:44.9]} 17... Qe5 {[%clk 0:01:52.9]} 18. Rad1 {[%clk 0:02:12.8]}
18... Rfe8 {[%clk 0:01:53]} 19. f4 {[%clk 0:02:05.7]} 19... Qb8 {[%clk
0:01:48.3]} 20. Be4 {[%clk 0:02:06.2]} 20... Qc8 {[%clk 0:01:45.4]} 21. g4
{[%clk 0:01:47.6]} 21... Nd6 {[%clk 0:01:46.3]} 22. Bxh7+ {[%clk 0:01:38.3]}
22... Kf8 {[%clk 0:01:47.1]} 23. f5 {[%clk 0:01:39.3]} 23... Bxd5 {[%clk
0:01:46.1]} 24. Nxd5 {[%clk 0:01:40.3]} 24... Ne4 {[%clk 0:01:44.7]} 25. g5
{[%clk 0:01:26.9]} 1-0

[Event "*** Titled Tuesday 3|2 Blitz"]
[Site "Chess.com"]
[Date "2015.12.01"]
[Round "1"]
[White "UltimateCrusher2"]
[Black "AvitalBor"]
[Result "0-1"]
[WhiteElo "2039"]
[BlackElo "2345"]
[TimeControl "180+2"]
[EndTime "11:05:23 PST"]
[Termination "AvitalBor won by resignation"]

1. Nf3 {[%clk 0:02:59.5]} 1... Nf6 {[%clk 0:03:00.5]} 2. c4 {[%clk 0:03:00.1]}
2... e6 {[%clk 0:02:59.6]} 3. g3 {[%clk 0:03:00.2]} 3... d5 {[%clk 0:03:01.5]}
4. Bg2 {[%clk 0:03:01.1]} 4... dxc4 {[%clk 0:03:02.1]} 5. Qa4+ {[%clk
0:02:59.8]} 5... Nbd7 {[%clk 0:03:03.5]} 6. Qxc4 {[%clk 0:03:01.4]} 6... a6
{[%clk 0:03:04.8]} 7. Qc2 {[%clk 0:02:59.5]} 7... Rb8 {[%clk 0:03:04.7]} 8. O-O
{[%clk 0:02:57.9]} 8... c5 {[%clk 0:03:04.8]} 9. a4 {[%clk 0:02:52.3]} 9... b6
{[%clk 0:03:05.6]} 10. Nc3 {[%clk 0:02:51.9]} 10... Bb7 {[%clk 0:03:06.3]} 11.
d3 {[%clk 0:02:52.8]} 11... Be7 {[%clk 0:03:04.7]} 12. Bf4 {[%clk 0:02:47.5]}
12... Rc8 {[%clk 0:03:03.3]} 13. h3 {[%clk 0:02:30.4]} 13... O-O {[%clk
0:03:00.6]} 14. Rfd1 {[%clk 0:02:29.7]} 14... Nd5 {[%clk 0:02:55.9]} 15. Nxd5
{[%clk 0:02:29.6]} 15... Bxd5 {[%clk 0:02:57.8]} 16. Nd2 {[%clk 0:02:27.5]}
16... Bxg2 {[%clk 0:02:57.4]} 17. Kxg2 {[%clk 0:02:29.4]} 17... Nf6 {[%clk
0:02:56]} 18. Nc4 {[%clk 0:02:25.4]} 18... b5 {[%clk 0:02:55.1]} 19. axb5 {[%clk
0:02:24.8]} 19... axb5 {[%clk 0:02:57]} 20. Ne5 {[%clk 0:02:10.6]} 20... Ra8
{[%clk 0:02:49.2]} 21. Nf3 {[%clk 0:02:06.8]} 21... Qd5 {[%clk 0:02:45.6]} 22.
Be3 {[%clk 0:02:05.6]} 22... h6 {[%clk 0:02:45.6]} 23. b3 {[%clk 0:02:01.3]}
23... Nd7 {[%clk 0:02:45.5]} 24. Bd2 {[%clk 0:01:53]} 24... Ne5 {[%clk
0:02:39.6]} 25. e4 {[%clk 0:01:52.1]} 25... Qxd3 {[%clk 0:02:39.3]} 26. Qxd3
{[%clk 0:01:43.5]} 26... Nxd3 {[%clk 0:02:41.2]} 27. Rxa8 {[%clk 0:01:43.8]}
27... Rxa8 {[%clk 0:02:39.9]} 28. Bc3 {[%clk 0:01:45.5]} 28... c4 {[%clk
0:02:28.5]} 29. Nd2 {[%clk 0:01:23.4]} 29... Bc5 {[%clk 0:02:26.2]} 30. bxc4
{[%clk 0:01:21]} 30... bxc4 {[%clk 0:02:28.1]} 31. Nxc4 {[%clk 0:01:20.5]} 31...
Nxf2 {[%clk 0:02:28.6]} 32. Rd7 {[%clk 0:01:13.1]} 32... Nxe4 {[%clk 0:02:27.2]}
33. Be5 {[%clk 0:01:12.4]} 33... Ra2+ {[%clk 0:02:24.9]} 34. Kf3 {[%clk
0:01:13.2]} 34... Ng5+ {[%clk 0:02:25.5]} 35. Kg4 {[%clk 0:01:14.5]} 35... Ra4
{[%clk 0:02:25]} 0-1

[Event "*** Titled Tuesday 3|2 Blitz"]
[Site "Chess.com"]
[Date "2015.12.01"]
[Round "1"]
[White "AnimationDomination"]
[Black "MateusViageiro"]
[Result "0-1"]
[WhiteElo "1759"]
[BlackElo "2302"]
[TimeControl "180+2"]
[EndTime "11:05:24 PST"]
[Termination "MateusViageiro won by resignation"]

1. d4 {[%clk 0:03:01.9]} 1... Nf6 {[%clk 0:03:00.2]} 2. c4 {[%clk 0:03:03.1]}
2... e6 {[%clk 0:03:01.6]} 3. Nc3 {[%clk 0:03:04.3]} 3... Bb4 {[%clk 0:03:02.3]}
4. Bd2 {[%clk 0:03:04.3]} 4... O-O {[%clk 0:03:01.7]} 5. Nf3 {[%clk 0:03:04]}
5... b6 {[%clk 0:03:02.8]} 6. e3 {[%clk 0:03:02.2]} 6... Bb7 {[%clk 0:03:03.9]}
7. Bd3 {[%clk 0:03:03.1]} 7... c5 {[%clk 0:03:02.8]} 8. a3 {[%clk 0:03:02.5]}
8... Bxc3 {[%clk 0:03:03.4]} 9. Bxc3 {[%clk 0:03:02.5]} 9... Ne4 {[%clk
0:03:04.9]} 10. Qe2 {[%clk 0:02:56.1]} 10... Nxc3 {[%clk 0:03:03.7]} 11. bxc3
{[%clk 0:02:58]} 11... d6 {[%clk 0:03:03.8]} 12. O-O {[%clk 0:02:59]} 12... Nd7
{[%clk 0:03:04.4]} 13. Rfd1 {[%clk 0:02:58.8]} 13... Qe7 {[%clk 0:03:05.6]} 14.
e4 {[%clk 0:02:59.8]} 14... e5 {[%clk 0:03:05.6]} 15. d5 {[%clk 0:02:57.2]}
15... Nf6 {[%clk 0:03:06.3]} 16. Nh4 {[%clk 0:02:52.9]} 16... g6 {[%clk
0:03:04.7]} 17. g3 {[%clk 0:02:50.2]} 17... Bc8 {[%clk 0:03:04]} 18. Rf1 {[%clk
0:02:37.2]} 18... Nh5 {[%clk 0:03:01.4]} 19. Qe3 {[%clk 0:02:32.2]} 19... Nf4
{[%clk 0:02:57.1]} 20. gxf4 {[%clk 0:02:24.7]} 20... Qxh4 {[%clk 0:02:56.8]} 21.
fxe5 {[%clk 0:02:21.7]} 21... dxe5 {[%clk 0:02:57.4]} 22. Qg3 {[%clk 0:02:22.4]}
22... Qe7 {[%clk 0:02:56.6]} 23. f4 {[%clk 0:02:20.5]} 23... exf4 {[%clk
0:02:56.7]} 24. Rxf4 {[%clk 0:02:22.4]} 24... Qe5 {[%clk 0:02:51.8]} 25. Bc2
{[%clk 0:02:12.9]} 25... Ba6 {[%clk 0:02:49.4]} 26. Bb3 {[%clk 0:02:08.3]} 26...
Rae8 {[%clk 0:02:48.7]} 27. Re1 {[%clk 0:01:57.2]} 27... Qg7 {[%clk 0:02:40.9]}
28. Qf2 {[%clk 0:01:49.7]} 28... Re5 {[%clk 0:02:39.6]} 29. a4 {[%clk
0:01:35.4]} 29... Rg5+ {[%clk 0:02:39.6]} 30. Kh1 {[%clk 0:01:35]} 30... Qxc3
{[%clk 0:02:39.7]} 31. Rf3 {[%clk 0:01:32.4]} 31... Qe5 {[%clk 0:02:38.1]} 32.
Re2 {[%clk 0:01:17.8]} 32... Bc8 {[%clk 0:02:37.5]} 33. Bc2 {[%clk 0:01:00.1]}
33... Bg4 {[%clk 0:02:37.3]} 34. Rfe3 {[%clk 0:00:57.2]} 34... Bxe2 {[%clk
0:02:37.6]} 35. Qxe2 {[%clk 0:00:59.1]} 0-1

[Event "*** Titled Tuesday 3|2 Blitz"]
[Site "Chess.com"]
[Date "2015.12.01"]
[Round "1"]
[White "1stSecond"]
[Black "armago"]
[Result "1-0"]
[WhiteElo "2394"]
[BlackElo "2102"]
[TimeControl "180+2"]
[EndTime "11:05:38 PST"]
[Termination "1stSecond won by resignation"]

1. d4 {[%clk 0:02:54.7]} 1... Nf6 {[%clk 0:03:00.3]} 2. c4 {[%clk 0:02:55.5]}
2... g6 {[%clk 0:03:00.9]} 3. Nc3 {[%clk 0:02:56.8]} 3... Bg7 {[%clk 0:03:01.9]}
4. Nf3 {[%clk 0:02:58.3]} 4... d6 {[%clk 0:03:02.9]} 5. e4 {[%clk 0:02:57.9]}
5... O-O {[%clk 0:03:02.5]} 6. h3 {[%clk 0:02:58.5]} 6... Na6 {[%clk 0:03:02.8]}
7. Be3 {[%clk 0:02:55.1]} 7... c6 {[%clk 0:02:54.7]} 8. Be2 {[%clk 0:02:55.3]}
8... e5 {[%clk 0:02:52.7]} 9. d5 {[%clk 0:02:49]} 9... Qe7 {[%clk 0:02:44.3]}
10. g4 {[%clk 0:02:48.8]} 10... Nd7 {[%clk 0:02:43.8]} 11. Rg1 {[%clk
0:02:38.8]} 11... Kh8 {[%clk 0:02:44]} 12. a3 {[%clk 0:02:34.7]} 12... f5 {[%clk
0:02:36.9]} 13. gxf5 {[%clk 0:02:34]} 13... gxf5 {[%clk 0:02:37.7]} 14. exf5
{[%clk 0:02:35.2]} 14... Nb6 {[%clk 0:02:32.3]} 15. Bg5 {[%clk 0:02:23.1]} 15...
Bf6 {[%clk 0:02:26.2]} 16. Bxf6+ {[%clk 0:02:18.6]} 16... Qxf6 {[%clk
0:02:26.5]} 17. Ne4 {[%clk 0:02:19.2]} 17... Qh6 {[%clk 0:02:20.7]} 18. f6
{[%clk 0:02:06.5]} 18... cxd5 {[%clk 0:02:16.5]} 19. cxd5 {[%clk 0:02:06.9]}
19... Qf4 {[%clk 0:01:51]} 20. Nfg5 {[%clk 0:02:03.4]} 20... Nc5 {[%clk
0:01:38.6]} 21. Bd3 {[%clk 0:01:49.1]} 21... Nxd3+ {[%clk 0:01:31.7]} 22. Qxd3
{[%clk 0:01:49.4]} 22... Bf5 {[%clk 0:01:32.4]} 23. Rg3 {[%clk 0:01:21.2]} 23...
h6 {[%clk 0:01:24.5]} 24. Nxd6 {[%clk 0:01:19.7]} 24... Bxd3 {[%clk 0:01:19.8]}
25. Ngf7+ {[%clk 0:01:20.4]} 25... Rxf7 {[%clk 0:01:20]} 26. Nxf7+ {[%clk
0:01:21]} 1-0

[Event "*** Titled Tuesday 3|2 Blitz"]
[Site "Chess.com"]
[Date "2015.12.01"]
[Round "1"]
[White "DaPazz"]
[Black "swayamsm"]
[Result "0-1"]
[WhiteElo "1816"]
[BlackElo "2316"]
[TimeControl "180+2"]
[EndTime "11:06:01 PST"]
[Termination "swayamsm won by resignation"]

1. d4 {[%clk 0:03:00.8]} 1... e6 {[%clk 0:03:01.3]} 2. c4 {[%clk 0:03:00.6]}
2... b6 {[%clk 0:03:02]} 3. Nc3 {[%clk 0:03:00.7]} 3... Bb7 {[%clk 0:03:02.3]}
4. e3 {[%clk 0:03:02.1]} 4... f5 {[%clk 0:03:02.7]} 5. Nf3 {[%clk 0:03:03.1]}
5... Nf6 {[%clk 0:03:03.6]} 6. Bd3 {[%clk 0:03:03.6]} 6... Bb4 {[%clk
0:03:02.6]} 7. O-O {[%clk 0:03:00]} 7... O-O {[%clk 0:03:02.9]} 8. Nd2 {[%clk
0:02:59]} 8... Bxc3 {[%clk 0:02:59.4]} 9. bxc3 {[%clk 0:02:58.3]} 9... d6 {[%clk
0:02:59]} 10. f3 {[%clk 0:02:57.3]} 10... Nbd7 {[%clk 0:02:59.9]} 11. a4 {[%clk
0:02:54.1]} 11... Qe8 {[%clk 0:02:58.7]} 12. a5 {[%clk 0:02:52.6]} 12... Qg6
{[%clk 0:02:49.1]} 13. axb6 {[%clk 0:02:40.6]} 13... axb6 {[%clk 0:02:44.4]} 14.
Bb2 {[%clk 0:02:40.6]} 14... Qg5 {[%clk 0:02:42.4]} 15. Qe2 {[%clk 0:02:36.5]}
15... h5 {[%clk 0:02:18.1]} 16. Kh1 {[%clk 0:02:21.7]} 16... h4 {[%clk
0:02:12.6]} 17. Rxa8 {[%clk 0:02:15.9]} 17... Rxa8 {[%clk 0:02:12.4]} 18. Ra1
{[%clk 0:02:15.6]} 18... Rxa1+ {[%clk 0:02:11.5]} 19. Bxa1 {[%clk 0:02:15.7]}
19... h3 {[%clk 0:02:13]} 20. g3 {[%clk 0:02:06.3]} 20... Ng4 {[%clk 0:01:27.4]}
21. e4 {[%clk 0:01:52.3]} 21... fxe4 {[%clk 0:01:25.9]} 22. Nxe4 {[%clk
0:01:43]} 22... Bxe4 {[%clk 0:01:04.2]} 23. fxe4 {[%clk 0:01:32.6]} 23... Qc1+
{[%clk 0:01:03.7]} 24. Qf1 {[%clk 0:01:21.7]} 24... Nf2+ {[%clk 0:01:04.2]} 0-1

[Event "*** Titled Tuesday 3|2 Blitz"]
[Site "Chess.com"]
[Date "2015.12.01"]
[Round "1"]
[White "FabianEnglert"]
[Black "AnastasiaProtopopova"]
[Result "1-0"]
[WhiteElo "2312"]
[BlackElo "1837"]
[TimeControl "180+2"]
[EndTime "11:06:26 PST"]
[Termination "FabianEnglert won by resignation"]

1. Nf3 {[%clk 0:02:51]} 1... Nf6 {[%clk 0:02:57.7]} 2. g3 {[%clk 0:02:51.9]}
2... d5 {[%clk 0:02:52.9]} 3. Bg2 {[%clk 0:02:52.4]} 3... c5 {[%clk 0:02:43.2]}
4. O-O {[%clk 0:02:53.3]} 4... g6 {[%clk 0:02:44.8]} 5. c4 {[%clk 0:02:50.2]}
5... d4 {[%clk 0:02:43.2]} 6. d3 {[%clk 0:02:48.5]} 6... Bg7 {[%clk 0:02:42.3]}
7. e3 {[%clk 0:02:49.7]} 7... O-O {[%clk 0:02:43.2]} 8. exd4 {[%clk 0:02:50.9]}
8... cxd4 {[%clk 0:02:41.5]} 9. b4 {[%clk 0:02:49.9]} 9... a5 {[%clk 0:02:34.1]}
10. b5 {[%clk 0:02:51]} 10... Nfd7 {[%clk 0:02:31.5]} 11. Ba3 {[%clk 0:02:50]}
11... Re8 {[%clk 0:02:30.7]} 12. Nbd2 {[%clk 0:02:49.4]} 12... e5 {[%clk
0:02:29.3]} 13. Ne4 {[%clk 0:02:46.7]} 13... Nf6 {[%clk 0:02:17.5]} 14. Nd6
{[%clk 0:02:29.7]} 14... Re6 {[%clk 0:02:15.9]} 15. Nxc8 {[%clk 0:02:27.6]}
15... Qxc8 {[%clk 0:02:15.3]} 16. Bh3 {[%clk 0:02:27.8]} 16... b6 {[%clk
0:02:07.9]} 17. Ng5 {[%clk 0:02:24.8]} 17... h6 {[%clk 0:02:01.8]} 18. Nxe6
{[%clk 0:02:22.5]} 18... fxe6 {[%clk 0:02:03.2]} 19. Rc1 {[%clk 0:02:19.4]}
19... Ra7 {[%clk 0:02:00.2]} 20. c5 {[%clk 0:02:19.1]} 20... bxc5 {[%clk
0:01:59.5]} 21. Rxc5 {[%clk 0:02:18]} 21... Qe8 {[%clk 0:01:58.3]} 22. Rxe5
{[%clk 0:02:14.6]} 22... Kh7 {[%clk 0:01:41.9]} 23. Rxe6 {[%clk 0:02:12.3]}
23... Qxb5 {[%clk 0:01:41.7]} 24. Qb1 {[%clk 0:02:00.2]} 24... Qxb1 {[%clk
0:01:16.7]} 25. Rxb1 {[%clk 0:02:02.1]} 25... Nbd7 {[%clk 0:01:18.1]} 26. Re7
{[%clk 0:01:54.4]} 26... Rc7 {[%clk 0:01:15.7]} 27. Bd6 {[%clk 0:01:50.7]} 27...
Rc6 {[%clk 0:01:14.5]} 28. Bxd7 {[%clk 0:01:38.9]} 28... Rxd6 {[%clk 0:01:14.6]}
29. Be6 {[%clk 0:01:32.3]} 29... Ng8 {[%clk 0:00:44.2]} 30. Bxg8+ {[%clk
0:01:27.7]} 30... Kxg8 {[%clk 0:00:45.1]} 31. Rb8+ {[%clk 0:01:26.7]} 1-0